[Event "CZE-ch Youth B16 2022"]
[Site "Luhacovice"]
[Date "2022.03.17"]
[Round "7.10"]
[White "Pelc, Adam"]
[Black "Mametev, Artem"]
[Result "1/2-1/2"]
[ECO "B70"]
[WhiteElo "1811"]
[BlackElo "1848"]
[Annotator "NA"]
[PlyCount "95"]
[EventDate "2022.03.12"]
[EventType "swiss"]
[EventCountry "CZE"]
[SourceTitle "playchess.com"]
[Source "ChessBase"]
[SourceQuality "1"]
[TimeControl "40/5400+30:1800+30"]

1. e4 {[%emt 0:00:04]} c5 {[%emt 0:00:04]} 2. Nf3 {[%emt 0:00:17]} d6 {[%emt 0:00:03]} 3. d4 {[%emt 0:00:37]} cxd4 {[%emt 0:00:04]} 4. Nxd4 {[%emt 0:00:38]} Nf6 {[%emt 0:00:04]} 5. Nc3 {[%emt 0:00:29]} g6 {[%emt 0:00:03]} 6. Bc4 {[%emt 0:02:35]} Bg7 {[%emt 0:02:35]} 7. Be3 {[%emt 0:04:43]} Ng4 {[%emt 0:06:57]} 8. Bb5+ {[%emt 0:01:44]} Kf8 {[%emt 0:00:02]} 9. O-O {[%emt 0:00:27]} Nxe3 {[%emt 0:01:54]} 10. fxe3 {[%emt 0:00:08]} e6 {[%emt 0:06:05]} 11. Bc4 {[%emt 0:01:51]} Qe7 {[%emt 0:01:53] [#]} 12. Ndb5 {[%emt 0:00:59]} (12. Ncb5 $1 $16 {[%cal Rb5d6]} Kg8 13. Nxd6 Qxd6 {[#]} 14. Nxe6 $1) 12... Be5 {[%emt 0:01:14]} 13. Qf3 {[%emt 0:01:53]} Nc6 {[%emt 0:03:13]} 14. Rad1 {[%emt 0:02:04]} Bd7 {[%emt 0:07:02]} 15. Nxd6 {[%emt 0:08:37]} Bxd6 {[%emt 0:00:17]} 16. Rxd6 {[%emt 0:00:06]} Ne5 {[%emt 0:00:11]} 17. Qd1 {[%emt 0:00:06]} Kg7 {[%emt 0:14:00]} 18. Qd4 {[%emt 0:01:23]} f6 {[%emt 0:00:11] [#]} 19. Rd1 $14 {[%emt 0:01:24]} (19. Bb3 $1 $16) 19... Rhc8 {[%emt 0:04:25]} 20. Bb3 {[%emt 0:02:41]} Rc6 {[%emt 0:06:52]} 21. Nb5 {[%emt 0:22:31]} Rxd6 {[%emt 0:01:36]} 22. Qxd6 {[%emt 0:00:23]} Qxd6 {[%emt 0:12:15]} 23. Nxd6 {[%emt 0:00:09]} b6 {[%emt 0:09:03]} 24. Nc4 {[%emt 0:00:36]} Bc6 {[%emt 0:00:46]} 25. Nxe5 {[%emt 0:00:46]} fxe5 {[%emt 0:00:02]} 26. Rd6 {[%emt 0:09:28]} Bxe4 {[%emt 0:03:33]} 27. Rxe6 {[%emt 0:00:13]} Rd8 {[%emt 0:01:14]} 28. Rxe5 {[%emt 0:01:18]} Rd1+ {[%emt 0:00:42]} 29. Kf2 {[%emt 0:00:09]} Bxc2 {[%emt 0:00:41]} 30. Bxc2 {[%emt 0:09:13]} Rd2+ {[%emt 0:00:05]} 31. Kf3 {[%emt 0:00:17]} Kf6 {[%emt 0:00:45]} 32. Re8 {[%emt 0:02:03]} Rxc2 {[%emt 0:00:14]} 33. Ra8 {[%emt 0:00:09]} a5 {[%emt 0:01:42]} 34. b3 {[%emt 0:00:49]} Rxa2 {[%emt 0:00:43]} 35. Ra6 {[%emt 0:00:07]} Ke5 {[%emt 0:01:23]} 36. Rxb6 {[%emt 0:00:50]} a4 {[%emt 0:00:28]} 37. bxa4 {[%emt 0:00:37]} Rxa4 {[%emt 0:00:02]} 38. Rb5+ {[%emt 0:00:43]} Kf6 {[%emt 0:02:20]} 39. g4 {[%emt 0:00:12]} h6 {[%emt 0:05:02]} 40. h4 {[%emt 0:01:27]} Ra1 {[%emt 0:01:36]} 41. g5+ {[%emt 0:31:00]} hxg5 {[%emt 0:30:56]} 42. hxg5+ {[%emt 0:00:06]} Kf7 {[%emt 0:01:00]} 43. Kf4 {[%emt 0:00:40]} Rf1+ {[%emt 0:00:46]} 44. Ke4 {[%emt 0:00:21]} Rg1 {[%emt 0:00:36]} 45. Rb7+ {[%emt 0:04:11]} Ke6 {[%emt 0:00:48]} 46. Rb6+ {[%emt 0:00:08]} Kf7 {[%emt 0:00:17]} 47. Kf4 {[%emt 0:00:18]} Rf1+ {[%emt 0:00:28]} 48. Ke4 1/2-1/2

[Event "CZE-ch Youth B16 2022"]
[Site "Luhacovice"]
[Date "2022.03.17"]
[Round "7.11"]
[White "Simek, Viktor"]
[Black "Oborny, Stanislav"]
[Result "0-1"]
[ECO "C44"]
[WhiteElo "1527"]
[BlackElo "1674"]
[Annotator "NA RC"]
[PlyCount "146"]
[EventDate "2022.03.12"]
[EventType "swiss"]
[EventCountry "CZE"]
[SourceTitle "playchess.com"]
[Source "ChessBase"]
[SourceQuality "1"]
[TimeControl "40/5400+30:1800+30"]

1. e4 {[%emt 0:00:06]} e5 {[%emt 0:00:06]} 2. Nf3 {[%emt 0:00:18]} Nc6 {[%emt 0:00:06]} 3. c3 {[%emt 0:02:50]} Nf6 {[%emt 0:02:46]} 4. d4 {[%emt 0:00:15]} exd4 {[%emt 0:09:44]} 5. e5 {[%emt 0:05:48]} Nd5 {[%emt 0:01:36]} 6. cxd4 {[%emt 0:05:00]} d6 {[%emt 0:05:20]} 7. Qb3 {[%emt 0:10:42]} Nb6 {[%emt 0:06:08]} 8. Bb5 {[%emt 0:06:21]} Bd7 {[%emt 0:02:40]} 9. O-O {[%emt 0:02:40]} Be7 {[%emt 0:15:18]} 10. exd6 {[%emt 0:01:04]} cxd6 {[%emt 0:00:09]} 11. Re1 {[%emt 0:08:12]} O-O {[%emt 0:00:23]} 12. Bf4 {[%emt 0:05:47]} Be6 {[%emt 0:03:47]} 13. Qd3 {[%emt 0:02:46]} Nd5 {[%emt 0:02:44]} 14. Bg3 {[%emt 0:00:45]} Rc8 {[%emt 0:06:51]} 15. Nc3 {[%emt 0:02:51]} Bf6 {[%emt 0:02:20]} 16. Ne4 {[%emt 0:04:20]} Ncb4 {[%emt 0:04:06]} 17. Qd1 {[%emt 0:02:30]} Nc2 {[%emt 0:00:16]} 18. Bxd6 {[%emt 0:00:55]} Nxe1 {[%emt 0:03:57]} 19. Nxe1 {[%emt 0:04:24]} Be7 {[%emt 0:00:20]} 20. Be5 {[%emt 0:01:05]} Nf6 {[%emt 0:02:44]} 21. Bd3 {[%emt 0:01:31]} Nxe4 {[%emt 0:03:23]} 22. Bxe4 {[%emt 0:00:07]} Qd7 {[%emt 0:01:42]} 23. Qf3 {[%emt 0:07:28]} b6 {[%emt 0:04:48]} 24. Bb7 {[%emt 0:05:38]} Rc4 {[%emt 0:04:47]} 25. b3 {[%emt 0:01:14]} Rxd4 {[%emt 0:02:04]} 26. Bxd4 {[%emt 0:01:34]} Qxd4 {[%emt 0:00:06]} 27. Rd1 {[%emt 0:00:34]} Qb2 {[%emt 0:03:25]} 28. Bd5 {[%emt 0:02:24]} Qxa2 {[%emt 0:04:02]} 29. h3 {[%emt 0:06:55]} Bxd5 {[%emt 0:02:42]} 30. Qxd5 {[%emt 0:00:18]} h6 {[%emt 0:00:56]} 31. Qf3 {[%emt 0:04:10]} Re8 {[%emt 0:02:11]} 32. Qc6 {[%emt 0:01:23]} Rf8 {[%emt 0:00:26]} 33. Qf3 {[%emt 0:00:11]} Bf6 {[%emt 0:00:58]} 34. g3 {[%emt 0:00:56]} Rc8 {[%emt 0:01:08]} 35. Qb7 {[%emt 0:02:14]} Re8 {[%emt 0:00:19]} 36. Qc6 {[%emt 0:00:57]} Qe2 {[%emt 0:00:33]} 37. Rc1 {[%emt 0:00:37]} Re6 {[%emt 0:00:49]} 38. Qf3 {[%emt 0:01:30]} Qd2 {[%emt 0:01:16]} 39. Qd1 {[%emt 0:00:42]} Bg5 {[%emt 0:01:59]} 40. Rc8+ {[%emt 0:00:51]} Kh7 {[%emt 0:00:06]} 41. Qxd2 {[%emt 0:30:31]} Bxd2 {[%emt 0:30:01]} 42. Nf3 {[%emt 0:00:17]} Bb4 {[%emt 0:00:56]} 43. Nd4 {[%emt 0:00:00]} Re1+ {[%emt 0:00:00]} 44. Kg2 {[%emt 0:00:00]} Bc5 {[%emt 0:00:00]} 45. Nc6 {[%emt 0:00:00]} Re2 {[%emt 0:00:00]} 46. b4 {[%emt 0:00:00]} Rxf2+ {[%emt 0:00:00]} 47. Kg1 {[%emt 0:00:00]} Be3 {[%emt 0:00:00]} 48. Re8 {[%emt 0:00:00]} Rc2+ {[%emt 0:00:00]} 49. Rxe3 {[%emt 0:00:00]} Rxc6 {[%emt 0:00:00]} 50. Re7 {[%emt 0:00:00]} a5 {[%emt 0:00:00]} 51. bxa5 {[%emt 0:00:00]} bxa5 {[%emt 0:00:00]} 52. Rxf7 {[%emt 0:00:00]} Rc2 {[%emt 0:00:00]} 53. Ra7 {[%emt 0:00:00]} Ra2 {[%emt 0:00:00]} 54. Ra6 {[%emt 0:00:00]} a4 {[%emt 0:00:00]} 55. Kf1 {[%emt 0:00:00]} a3 {[%emt 0:00:00]} 56. h4 {[%emt 0:00:00]} h5 {[%emt 0:00:00]} 57. Ke1 {[%emt 0:00:00]} Kg8 {[%emt 0:00:00]} 58. Kd1 {[%emt 0:00:00]} Ra1+ {[%emt 0:00:00]} 59. Kc2 {[%emt 0:00:00]} a2 {[%emt 0:00:00]} 60. Kb2 {[%emt 0:00:00]} Rg1 {[%emt 0:00:00]} 61. Kxa2 {[%emt 0:00:00]} Rxg3 {[%emt 0:00:00]} 62. Ra5 {[%emt 0:00:00]} g6 {[%emt 0:00:00]} 63. Kb2 {[%emt 0:00:00]} Rg4 {[%emt 0:00:00]} 64. Ra6 {[%emt 0:00:00]} Kh7 {[%emt 0:00:00]} 65. Ra7+ {[%emt 0:00:00]} Kh6 {[%emt 0:00:00]} 66. Kc2 {[%emt 0:00:00]} Rxh4 {[%emt 0:00:00]} 67. Kd2 {[%emt 0:00:00]} Re4 {[%emt 0:00:00]} 68. Ra8 {[%emt 0:00:00]} h4 {[%emt 0:00:00]} 69. Kd3 {[%emt 0:00:00]} Re6 {[%emt 0:00:00]} 70. Ra5 {[%emt 0:00:00]} h3 {[%emt 0:00:00]} 71. Ra8 {[%emt 0:00:00]} Kg5 {[%emt 0:00:00]} 72. Ra5+ {[%emt 0:00:00]} Kg4 {[%emt 0:00:00]} 73. Ra4+ {[%emt 0:00:25]} Kg3 {[%emt 0:00:00]} 0-1

[Event "CZE-ch Youth B16 2022"]
[Site "Luhacovice"]
[Date "2022.03.17"]
[Round "7.12"]
[White "Mrazek, Roman"]
[Black "Zrubek, Adam"]
[Result "1/2-1/2"]
[ECO "B52"]
[WhiteElo "1820"]
[BlackElo "1661"]
[Annotator "NA"]
[PlyCount "67"]
[EventDate "2022.03.12"]
[EventType "swiss"]
[EventCountry "CZE"]
[SourceTitle "playchess.com"]
[Source "ChessBase"]
[SourceQuality "1"]
[TimeControl "40/5400+30:1800+30"]

1. e4 c5 2. Nf3 d6 3. Bb5+ Bd7 4. Bxd7+ Qxd7 5. c4 Nc6 6. d4 cxd4 7. Nxd4 Nf6 8. Nc3 g6 9. h3 Bg7 10. Be3 O-O 11. O-O Rac8 12. b3 Rfd8 13. Rc1 a6 14. Qd3 Nb4 15. Qe2 $14 Nc6 16. Rfd1 Qe8 17. Kh1 Nh5 18. Nd5 Nf6 19. Nb6 Rb8 20. Qc2 Nb4 21. Qd2 Nc6 22. f3 Ne5 23. b4 Ned7 24. Nd5 Nxd5 25. cxd5 Rdc8 26. Nb3 Ne5 27. Na5 Qd7 28. f4 b6 29. Rxc8+ Rxc8 30. Bxb6 Nc4 31. Nxc4 Rxc4 32. e5 dxe5 33. fxe5 Bxe5 34. Bc5 1/2-1/2

[Event "CZE-ch Youth B16 2022"]
[Site "Luhacovice"]
[Date "2022.03.18"]
[Round "8.1"]
[White "Hak, David"]
[Black "Smolik, Jachym"]
[Result "1-0"]
[ECO "B10"]
[WhiteElo "2132"]
[BlackElo "2277"]
[Annotator "ChessBase"]
[PlyCount "57"]
[EventDate "2022.03.12"]
[EventType "swiss"]
[EventCountry "CZE"]
[SourceTitle "playchess.com"]
[Source "ChessBase"]
[SourceQuality "1"]
[TimeControl "40/5400+30:1800+30"]

1. e4 c6 2. Nc3 d5 3. Nf3 dxe4 4. Nxe4 Nf6 5. Nxf6+ exf6 6. d4 Bd6 7. Bd3 O-O 8. O-O Bg4 9. Be3 Nd7 10. c4 Re8 11. h3 Bh5 12. Bf5 Nf8 13. d5 c5 14. b4 b6 15. bxc5 bxc5 16. Rb1 Nd7 17. Rb7 Nb6 18. Bxh7+ Kf8 19. Ng5 Qc8 20. Qxh5 Qxb7 21. Bf5 Nxc4 22. Qh8+ Ke7 23. Qxg7 Rf8 24. Ne4 Qxd5 25. Qxf6+ Ke8 26. Bg5 Rg8 27. Nxd6+ Qxd6 28. Re1+ Kf8 29. Bh6+ 1-0

[Event "CZE-ch Youth B16 2022"]
[Site "Luhacovice"]
[Date "2022.03.18"]
[Round "8.2"]
[White "Soucek, Petr"]
[Black "Janous, Marek"]
[Result "0-1"]
[ECO "A28"]
[WhiteElo "2194"]
[BlackElo "2056"]
[Annotator "ChessBase"]
[PlyCount "99"]
[EventDate "2022.03.12"]
[EventType "swiss"]
[EventCountry "CZE"]
[SourceTitle "playchess.com"]
[Source "ChessBase"]
[SourceQuality "1"]
[TimeControl "40/5400+30:1800+30"]

1. c4 e5 {[%emt 0:00:52]} 2. Nc3 {[%emt 0:00:13]} Nf6 {[%emt 0:00:12]} 3. Nf3 {[%emt 0:00:52]} Nc6 {[%emt 0:00:10]} 4. e3 {[%emt 0:00:12]} d5 {[%emt 0:06:05]} 5. cxd5 {[%emt 0:03:27]} Nxd5 {[%emt 0:00:06]} 6. Bb5 {[%emt 0:00:01]} Nxc3 {[%emt 0:02:55]} 7. bxc3 {[%emt 0:00:06]} Bd6 {[%emt 0:02:13]} 8. d4 {[%emt 0:00:13]} exd4 {[%emt 0:01:35]} 9. cxd4 {[%emt 0:00:08]} O-O {[%emt 0:01:49]} 10. O-O {[%emt 0:00:12]} Bg4 {[%emt 0:01:39]} 11. h3 {[%emt 0:00:05]} Bh5 {[%emt 0:01:44]} 12. Be2 {[%emt 0:00:33]} Qe7 {[%emt 0:08:21]} 13. Re1 {[%emt 0:03:27]} Rfe8 {[%emt 0:01:10]} 14. Bb2 {[%emt 0:03:45]} Rad8 {[%emt 0:02:17]} 15. Qb3 {[%emt 0:03:07]} Bg6 {[%emt 0:08:02]} 16. a3 {[%emt 0:02:00]} Be4 {[%emt 0:04:34]} 17. Kf1 {[%emt 0:25:08]} Na5 {[%emt 0:12:11]} 18. Qc3 {[%emt 0:00:45]} b6 {[%emt 0:01:30]} 19. Nd2 {[%emt 0:03:05]} Bb7 {[%emt 0:02:19]} 20. Bf3 {[%emt 0:06:28]} Bxf3 {[%emt 0:05:54]} 21. Nxf3 {[%emt 0:00:12]} Qe4 {[%emt 0:02:33]} 22. a4 {[%emt 0:14:16]} Qc6 {[%emt 0:17:24]} 23. Qxc6 {[%emt 0:01:56]} Nxc6 {[%emt 0:00:05]} 24. Ba3 {[%emt 0:00:54]} Nb4 {[%emt 0:00:08]} 25. Bxb4 {[%emt 0:00:08]} Bxb4 {[%emt 0:00:00]} 26. Rec1 {[%emt 0:00:08]} c5 {[%emt 0:00:19]} 27. Ke2 {[%emt 0:00:51]} cxd4 {[%emt 0:00:20]} 28. Rc7 {[%emt 0:00:58]} dxe3 {[%emt 0:01:59]} 29. fxe3 {[%emt 0:01:02]} f5 {[%emt 0:03:59]} 30. Rd1 {[%emt 0:06:11]} Rxd1 {[%emt 0:00:55]} 31. Kxd1 {[%emt 0:00:06]} a5 {[%emt 0:00:40]} 32. Nd4 {[%emt 0:03:03]} g6 {[%emt 0:01:36]} 33. Nc2 {[%emt 0:00:20]} Bc5 {[%emt 0:00:13]} 34. Kd2 {[%emt 0:00:37]} Re4 {[%emt 0:00:39]} 35. Kd3 {[%emt 0:01:07]} Rxa4 {[%emt 0:00:07]} 36. Nd4 {[%emt 0:00:09]} Ra3+ {[%emt 0:00:43]} 37. Kc4 {[%emt 0:00:24]} Rxe3 {[%emt 0:00:26]} 38. Nf3 {[%emt 0:00:10]} a4 {[%emt 0:02:38]} 39. Kd5 {[%emt 0:00:04]} a3 {[%emt 0:01:41]} 40. Ra7 {[%emt 0:00:05]} Rd3+ {[%emt 0:06:20]} 41. Ke6 {[%emt 0:30:35]} b5 {[%emt 0:32:04]} 42. Ra5 {[%emt 0:00:28]} Rd6+ {[%emt 0:00:00]} 43. Ke5 {[%emt 0:00:00]} Rb6 {[%emt 0:00:00]} 44. Kd5 {[%emt 0:00:00]} Bf8 {[%emt 0:00:00]} 45. Ne5 {[%emt 0:00:00]} b4 {[%emt 0:00:00]} 46. Kc4 {[%emt 0:00:00]} b3 {[%emt 0:00:00]} 47. Nd7 {[%emt 0:00:00]} b2 {[%emt 0:00:00]} 48. Ra7 {[%emt 0:00:00]} b1=Q {[%emt 0:00:00]} 49. Nf6+ {[%emt 0:00:00]} Rxf6 {[%emt 0:00:00]} 50. Kd4 0-1

[Event "CZE-ch Youth B16 2022"]
[Site "Luhacovice"]
[Date "2022.03.18"]
[Round "8.3"]
[White "Vilimek, Vit"]
[Black "Dolensky, Filip"]
[Result "0-1"]
[ECO "B07"]
[WhiteElo "1794"]
[BlackElo "2021"]
[Annotator "NA"]
[PlyCount "62"]
[EventDate "2022.03.12"]
[EventType "swiss"]
[EventCountry "CZE"]
[SourceTitle "playchess.com"]
[Source "ChessBase"]
[SourceQuality "1"]
[TimeControl "40/5400+30:1800+30"]

1. e4 {[%emt 0:00:04]} d6 {[%emt 0:00:30]} 2. d4 {[%emt 0:00:31]} Nf6 {[%emt 0:01:21]} 3. Nc3 {[%emt 0:00:17]} Nbd7 {[%emt 0:00:08]} 4. f4 {[%emt 0:04:33]} e5 {[%emt 0:02:09]} 5. Nf3 {[%emt 0:02:05]} exd4 {[%emt 0:01:07]} 6. Nxd4 {[%emt 0:00:09]} g6 {[%emt 0:00:38]} 7. h3 {[%emt 0:01:15]} Bg7 {[%emt 0:01:42]} 8. Be3 {[%emt 0:00:17]} O-O {[%emt 0:08:57]} 9. Qf3 $1 {[%emt 0:00:37]} Re8 {[%emt 0:01:31]} 10. O-O-O {[%emt 0:02:46]} Qe7 {[%emt 0:09:49]} (10... a6 $11) 11. Ndb5 {[%emt 0:07:04]} Nb8 {[%emt 0:19:42]} 12. e5 {[%emt 0:10:41]} dxe5 {[%emt 0:00:42]} 13. fxe5 $18 {[%emt 0:02:17]} Nh5 {[%emt 0:06:10]} 14. Bc4 {[%emt 0:20:23]} Nc6 {[%emt 0:07:08]} 15. Bc5 {[%emt 0:23:28]} Qg5+ {[%emt 0:09:01]} 16. Be3 {[%emt 0:07:19]} Qe7 {[%emt 0:01:28]} 17. Nd5 {[%emt 0:04:19]} Qxe5 {[%emt 0:02:25]} 18. c3 {[%emt 0:06:08]} Bf5 {[%emt 0:03:10]} 19. Rhf1 {[%emt 0:02:35]} Ng3 {[%emt 0:09:05]} 20. Bf4 {[%emt 0:00:57]} Ne2+ {[%emt 0:00:12]} 21. Qxe2 {[%emt 0:01:20]} Qxe2 {[%emt 0:00:10]} 22. Bxe2 {[%emt 0:00:02]} Rxe2 {[%emt 0:00:02]} 23. Ne3 {[%emt 0:00:21]} Be4 {[%emt 0:01:36]} 24. Nxc7 {[%emt 0:01:47]} Rc8 {[%emt 0:00:49]} 25. Rd2 {[%emt 0:01:09]} Rxe3 {[%emt 0:00:52]} 26. Bxe3 {[%emt 0:00:25]} Rxc7 {[%emt 0:00:00]} 27. Re1 {[%emt 0:00:35]} Re7 {[%emt 0:00:36]} 28. Bc5 {[%emt 0:00:33]} Re8 {[%emt 0:00:29]} 29. Be3 {[%emt 0:00:31]} Bf5 {[%emt 0:01:05]} 30. g4 {[%emt 0:00:02]} Bh6 {[%emt 0:02:17]} 31. gxf5 {[%emt 0:00:47]} Rxe3 {[%emt 0:00:06]} 0-1

[Event "CZE-ch Youth B16 2022"]
[Site "Luhacovice"]
[Date "2022.03.18"]
[Round "8.4"]
[White "Le, Anh Dung"]
[Black "Stejskal, Michal"]
[Result "1/2-1/2"]
[ECO "B32"]
[WhiteElo "1998"]
[BlackElo "1857"]
[Annotator "NA"]
[PlyCount "58"]
[EventDate "2022.03.12"]
[EventType "swiss"]
[EventCountry "CZE"]
[SourceTitle "playchess.com"]
[Source "ChessBase"]
[SourceQuality "1"]
[TimeControl "40/5400+30:1800+30"]

1. e4 {[%emt 0:00:03]} c5 {[%emt 0:00:08]} 2. Nf3 {[%emt 0:00:08]} Nc6 {[%emt 0:00:06]} 3. d4 {[%emt 0:00:19]} cxd4 {[%emt 0:00:12]} 4. Nxd4 {[%emt 0:00:04]} e5 {[%emt 0:00:09]} 5. Nb3 {[%emt 0:00:39]} Nf6 {[%emt 0:00:51]} 6. Nc3 {[%emt 0:00:04]} Bb4 {[%emt 0:00:31]} 7. Bc4 {[%emt 0:00:06]} O-O {[%emt 0:00:15]} 8. O-O {[%emt 0:00:11]} Bxc3 {[%emt 0:00:29]} 9. bxc3 {[%emt 0:00:03]} Nxe4 {[%emt 0:00:28]} 10. Qd3 {[%emt 0:00:10]} Nf6 {[%emt 0:00:08]} 11. Ba3 {[%emt 0:01:23]} d5 {[%emt 0:01:35]} 12. Bxf8 {[%emt 0:02:24]} dxc4 {[%emt 0:00:04]} 13. Qxd8 {[%emt 0:00:30]} Nxd8 {[%emt 0:00:05]} 14. Be7 {[%emt 0:00:42]} cxb3 {[%emt 0:00:05]} 15. Bxd8 {[%emt 0:02:11]} bxc2 {[%emt 0:00:13]} 16. Bxf6 {[%emt 0:03:23]} gxf6 {[%emt 0:00:07]} 17. f4 {[%emt 0:00:56]} Bd7 {[%emt 0:08:57]} 18. Rac1 {[%emt 0:12:34] [#]} ({White should try} 18. Rfe1) 18... Ba4 $1 {[%emt 0:01:13]} 19. Rfe1 {[%emt 0:05:06]} Rc8 {[%emt 0:07:03]} 20. fxe5 {[%emt 0:02:44]} fxe5 {[%emt 0:00:07]} 21. Re4 {[%emt 0:10:10] [#]} Rd8 $1 {[%emt 0:10:13]} 22. Rxe5 {[%emt 0:10:07]} Rd1+ {[%emt 0:00:09]} 23. Re1 {[%emt 0:00:27] [#]} Kg7 {[%emt 0:07:12]} (23... Rd2 $1 $17 24. Re5 f6) 24. Kf2 {[%emt 0:00:29]} Kf6 {[%emt 0:01:37]} 25. h3 {[%emt 0:04:32]} Kf5 $15 {[%emt 0:02:20]} 26. Ra1 {[%emt 0:01:58]} Kf4 {[%emt 0:10:48]} 27. h4 {[%emt 0:02:48]} Kf5 {[%emt 0:00:06]} 28. g3 {[%emt 0:00:10]} a5 {[%emt 0:05:44]} 29. Rc1 {[%emt 0:04:38]} b5 {[%emt 0:12:59]} 1/2-1/2

[Event "CZE-ch Youth B16 2022"]
[Site "Luhacovice"]
[Date "2022.03.18"]
[Round "8.5"]
[White "Paseka, Matyas"]
[Black "Winter, Ondrej"]
[Result "1/2-1/2"]
[ECO "B32"]
[WhiteElo "2058"]
[BlackElo "2147"]
[Annotator "NA"]
[PlyCount "119"]
[EventDate "2022.03.12"]
[EventType "swiss"]
[EventCountry "CZE"]
[SourceTitle "playchess.com"]
[Source "ChessBase"]
[SourceQuality "1"]
[TimeControl "40/5400+30:1800+30"]

1. e4 {[%emt 0:00:04]} c5 {[%emt 0:00:03]} 2. Nf3 {[%emt 0:00:08]} Nc6 {[%emt 0:00:03]} 3. d4 {[%emt 0:00:05]} cxd4 {[%emt 0:00:02]} 4. Nxd4 {[%emt 0:00:08]} g6 {[%emt 0:00:02]} 5. Be2 {[%emt 0:00:17]} Bg7 {[%emt 0:00:13]} 6. Nb3 {[%emt 0:00:06]} Nf6 {[%emt 0:01:44]} 7. Nc3 {[%emt 0:00:06]} O-O {[%emt 0:00:08]} 8. O-O {[%emt 0:00:05]} d6 {[%emt 0:00:13]} 9. Re1 {[%emt 0:00:08]} Be6 {[%emt 0:02:13]} 10. Bg5 {[%emt 0:00:14]} Rc8 {[%emt 0:02:13]} 11. Bf1 {[%emt 0:08:50]} Ne5 {[%emt 0:02:42]} 12. Nd5 {[%emt 0:00:51]} Bxd5 {[%emt 0:07:29]} 13. exd5 {[%emt 0:00:08]} Re8 {[%emt 0:04:05]} 14. c3 {[%emt 0:05:08]} Nc4 {[%emt 0:04:53]} 15. Bxc4 {[%emt 0:12:21]} Rxc4 {[%emt 0:02:08]} 16. Qd3 {[%emt 0:00:33]} Qc8 {[%emt 0:05:10]} 17. Nd2 {[%emt 0:04:59]} Rc5 {[%emt 0:06:59]} 18. Bxf6 {[%emt 0:03:38]} Bxf6 {[%emt 0:02:15]} 19. Ne4 {[%emt 0:00:07]} Rc7 {[%emt 0:00:10]} (19... Ra5 $1 $11) 20. Qb5 {[%emt 0:13:17]} Rd7 {[%emt 0:06:37]} 21. Nxf6+ {[%emt 0:00:57]} exf6 {[%emt 0:00:02]} 22. Re2 {[%emt 0:00:45]} Rde7 $11 {[%emt 0:00:56]} 23. Rae1 {[%emt 0:02:23]} Rxe2 {[%emt 0:01:54]} 24. Rxe2 {[%emt 0:00:03]} Rxe2 {[%emt 0:00:06]} 25. Qxe2 {[%emt 0:00:04]} Qf5 {[%emt 0:00:04]} 26. Qd1 {[%emt 0:00:42]} Qe4 {[%emt 0:00:53]} 27. b3 {[%emt 0:03:04]} f5 {[%emt 0:02:03]} 28. c4 {[%emt 0:03:17]} f4 {[%emt 0:00:13]} 29. c5 {[%emt 0:01:18]} Qb4 {[%emt 0:12:16]} 30. cxd6 {[%emt 0:03:21]} Qxd6 {[%emt 0:01:12]} 31. Qd4 {[%emt 0:01:00]} Kf8 {[%emt 0:02:17]} 32. g3 {[%emt 0:11:18]} fxg3 {[%emt 0:01:34]} 33. hxg3 {[%emt 0:00:08]} a6 {[%emt 0:01:15]} 34. b4 {[%emt 0:01:42]} h5 {[%emt 0:01:44]} 35. a4 {[%emt 0:03:50]} Ke7 {[%emt 0:01:51]} 36. Kf1 {[%emt 0:02:33]} Qf6 {[%emt 0:01:19]} 37. Qa7 {[%emt 0:01:24]} Qa1+ {[%emt 0:03:04]} 38. Kg2 {[%emt 0:00:04]} Qxa4 {[%emt 0:00:03]} 39. Qxb7+ {[%emt 0:00:05]} Qd7 {[%emt 0:00:56]} 40. Qxa6 {[%emt 0:05:03]} Qxd5+ {[%emt 0:00:04]} 41. Kh2 {[%emt 0:30:07]} Qd4 {[%emt 0:35:35]} 42. Qb7+ {[%emt 0:00:36]} Ke8 {[%emt 0:01:02]} 43. Kg2 {[%emt 0:02:37]} h4 {[%emt 0:02:57]} 44. Qb5+ {[%emt 0:01:49]} Kf8 {[%emt 0:00:37]} 45. Qb8+ {[%emt 0:01:22]} Kg7 {[%emt 0:00:18]} 46. Qf4 {[%emt 0:05:22]} Qd5+ {[%emt 0:00:42]} 47. Kh2 {[%emt 0:00:23]} hxg3+ {[%emt 0:00:06]} 48. Kxg3 {[%emt 0:00:20]} Qd3+ {[%emt 0:03:01]} 49. Kh2 {[%emt 0:01:47]} Qe2 {[%emt 0:01:07]} 50. Qd4+ {[%emt 0:00:21]} Kg8 {[%emt 0:01:25]} 51. Kg2 {[%emt 0:00:45]} Kh7 {[%emt 0:03:05]} 52. Kg3 {[%emt 0:01:13]} Kg8 {[%emt 0:01:19]} 53. Qc5 {[%emt 0:00:54]} Qd3+ 54. Kf4 {[%emt 0:00:20]} f6 {[%emt 0:08:01]} 55. b5 {[%emt 0:00:00]} g5+ {[%emt 0:00:00]} 56. Kg4 {[%emt 0:00:00]} Qe4+ {[%emt 0:00:00]} 57. Kh5 {[%emt 0:00:00]} Qh7+ {[%emt 0:00:00]} 58. Kg4 {[%emt 0:00:00]} Qe4+ {[%emt 0:00:00]} 59. f4 {[%emt 0:00:00]} Kf7 {[%emt 0:00:00]} 60. Qf2 {[%emt 0:00:00]} 1/2-1/2

[Event "CZE-ch Youth B16 2022"]
[Site "Luhacovice"]
[Date "2022.03.18"]
[Round "8.6"]
[White "Jirasko, Miroslav"]
[Black "Vaclavik, Jan"]
[Result "1-0"]
[ECO "A21"]
[WhiteElo "1933"]
[BlackElo "1997"]
[Annotator "NA"]
[PlyCount "49"]
[EventDate "2022.03.12"]
[EventType "swiss"]
[EventCountry "CZE"]
[SourceTitle "playchess.com"]
[Source "ChessBase"]
[SourceQuality "1"]
[TimeControl "40/5400+30:1800+30"]

1. c4 {[%emt 0:00:08]} e5 {[%emt 0:00:06]} 2. Nc3 {[%emt 0:00:06]} d6 {[%emt 0:00:07]} 3. d4 {[%emt 0:00:08]} Be7 {[%emt 0:01:10]} 4. dxe5 {[%emt 0:01:37]} dxe5 {[%emt 0:00:02]} 5. Qxd8+ {[%emt 0:00:08]} Bxd8 {[%emt 0:00:01]} 6. b3 {[%emt 0:04:09]} Bf5 {[%emt 0:02:09]} 7. g3 {[%emt 0:02:26]} c6 {[%emt 0:02:32]} 8. Bg2 {[%emt 0:03:38]} Nd7 {[%emt 0:04:05]} 9. Bb2 {[%emt 0:02:59]} Bc7 {[%emt 0:07:07]} 10. Nf3 {[%emt 0:04:43]} Nh6 {[%emt 0:12:38]} 11. O-O {[%emt 0:02:47]} O-O {[%emt 0:02:17]} 12. Ng5 {[%emt 0:04:24]} Rad8 {[%emt 0:04:15]} 13. Nge4 {[%emt 0:04:09]} Bxe4 {[%emt 0:05:28]} 14. Nxe4 {[%emt 0:00:32]} f5 {[%emt 0:01:21]} 15. Ng5 {[%emt 0:01:35]} Rfe8 {[%emt 0:01:48]} 16. e4 {[%emt 0:04:36]} Nc5 {[%emt 0:03:47]} 17. exf5 {[%emt 0:07:39]} Nxf5 {[%emt 0:02:31]} 18. Ne4 $14 {[%emt 0:05:45]} Bb6 {[%emt 0:07:39]} 19. Rad1 {[%emt 0:06:22]} Nd4 {[%emt 0:14:54]} 20. Nxc5 {[%emt 0:02:14]} Bxc5 {[%emt 0:00:02]} 21. Be4 {[%emt 0:00:07]} Rf8 {[%emt 0:04:09]} 22. Kg2 {[%emt 0:00:21]} Rd6 {[%emt 0:02:16]} 23. f4 {[%emt 0:08:55]} exf4 {[%emt 0:03:43]} 24. b4 {[%emt 0:02:36]} f3+ {[%emt 0:03:25]} 25. Kh1 {[%emt 0:01:08]} 1-0